[Event "Titled Tuesday Blitz September 21 2021"]
[White "Martinez Alcantara, Jose Eduardo"]
[Black "Florescu, Codrut-Constantin"]
[WhiteFideId "3805662"]
[BlackFideId "1202200"]
[WhiteElo "2690"]
[BlackElo "2243"]
[Result "1-0"]
[Round "01"]
[TimeControl "180+1"]
[Date "2021.09.21"]
[WhiteClock "0:00:15"]
[BlackClock "0:00:20"]

1. e4 {[%clk 0:03:00]}  c5 {[%clk 0:02:59]} 2. Nf3 {[%clk 0:02:58]}  e6 {[%clk 0:02:59]} 3. c3 {[%clk 0:02:58]}  Nf6 {[%clk 0:02:58]} 4. Bd3 {[%clk 0:02:57]}  Nc6 {[%clk 0:02:55]} 5. Qe2 {[%clk 0:02:54]}  d5 {[%clk 0:02:53]} 6. e5 {[%clk 0:02:54]}  Nd7 {[%clk 0:02:52]} 7. Bb5 {[%clk 0:02:54]}  a6 {[%clk 0:02:47]} 8. Bxc6 {[%clk 0:02:51]}  bxc6 {[%clk 0:02:48]} 9. d3 {[%clk 0:02:51]}  Be7 {[%clk 0:02:44]} 10. O-O {[%clk 0:02:50]}  g5 {[%clk 0:02:43]} 11. Re1 {[%clk 0:02:33]}  g4 {[%clk 0:02:42]} 12. Nfd2 {[%clk 0:02:34]}  c4 {[%clk 0:02:30]} 13. dxc4 {[%clk 0:02:30]}  h5 {[%clk 0:02:29]} 14. cxd5 {[%clk 0:02:04]}  cxd5 {[%clk 0:02:29]} 15. c4 {[%clk 0:02:05]}  Nb6 {[%clk 0:02:22]} 16. Nc3 {[%clk 0:02:00]}  a5 {[%clk 0:02:20]} 17. cxd5 {[%clk 0:01:43]}  Nxd5 {[%clk 0:02:19]} 18. Nde4 {[%clk 0:01:43]}  Ba6 {[%clk 0:02:12]} 19. Qd1 {[%clk 0:01:43]}  Nb4 {[%clk 0:02:09]} 20. Qa4+ {[%clk 0:01:18]}  Kf8 {[%clk 0:02:03]} 21. Rd1 {[%clk 0:01:17]}  Qe8 {[%clk 0:01:52]} 22. Qxe8+ {[%clk 0:01:15]}  Kxe8 {[%clk 0:01:51]} 23. Bg5 {[%clk 0:01:12]}  Nd3 {[%clk 0:01:40]} 24. Nf6+ {[%clk 0:01:07]}  Kf8 {[%clk 0:01:32]} 25. Nce4 {[%clk 0:01:04]}  Rd8 {[%clk 0:01:30]} 26. Rd2 {[%clk 0:00:42]}  Nxe5 {[%clk 0:01:23]} 27. Rxd8+ {[%clk 0:00:42]}  Bxd8 {[%clk 0:01:23]} 28. Rd1 {[%clk 0:00:43]}  Be7 {[%clk 0:01:15]} 29. Rc1 {[%clk 0:00:35]}  Bd8 {[%clk 0:01:04]} 30. Nd7+ {[%clk 0:00:21]}  Nxd7 {[%clk 0:01:00]} 31. Bxd8 {[%clk 0:00:21]}  Kg7 {[%clk 0:00:59]} 32. Bxa5 {[%clk 0:00:21]}  f5 {[%clk 0:00:54]} 33. Bc3+ {[%clk 0:00:20]}  e5 {[%clk 0:00:53]} 34. Nc5 {[%clk 0:00:19]}  Nf6 {[%clk 0:00:46]} 35. Nxa6 {[%clk 0:00:19]}  Re8 {[%clk 0:00:43]} 36. Nb4 {[%clk 0:00:18]}  Kg6 {[%clk 0:00:41]} 37. Nd3 {[%clk 0:00:18]}  Nd7 {[%clk 0:00:40]} 38. Re1 {[%clk 0:00:18]}  e4 {[%clk 0:00:39]} 39. Nf4+ {[%clk 0:00:18]}  Kg5 {[%clk 0:00:39]} 40. g3 {[%clk 0:00:17]}  h4 {[%clk 0:00:38]} 41. Rd1 {[%clk 0:00:18]}  Re7 {[%clk 0:00:25]} 42. Rd6 {[%clk 0:00:16]}  Nf8 {[%clk 0:00:20]} 43. Bf6+ {[%clk 0:00:15]} 1-0


[Site "https://www.chess.com"]

[Event "Titled Tuesday Blitz September 21 2021"]
[White "Mirzoev, Azer"]
[Black "Nguyen Hong Nhung"]
[WhiteFideId "13400304"]
[BlackFideId "12412201"]
[WhiteElo "2525"]
[BlackElo "1661"]
[Result "1-0"]
[Round "01"]
[TimeControl "180+1"]
[Date "2021.09.21"]
[WhiteClock "0:01:19"]
[BlackClock "0:00:11"]

1. c4 {[%clk 0:02:59]}  c5 {[%clk 0:02:52]} 2. Nc3 {[%clk 0:02:58]}  e6 {[%clk 0:02:52]} 3. g3 {[%clk 0:02:59]}  Nc6 {[%clk 0:02:52]} 4. Bg2 {[%clk 0:02:59]}  Nf6 {[%clk 0:02:52]} 5. e4 {[%clk 0:02:56]}  d6 {[%clk 0:02:48]} 6. d3 {[%clk 0:02:56]}  g6 {[%clk 0:02:44]} 7. Nge2 {[%clk 0:02:57]}  Bg7 {[%clk 0:02:42]} 8. O-O {[%clk 0:02:58]}  O-O {[%clk 0:02:42]} 9. f4 {[%clk 0:02:55]}  Nd4 {[%clk 0:02:30]} 10. Nxd4 {[%clk 0:02:54]}  cxd4 {[%clk 0:02:28]} 11. Ne2 {[%clk 0:02:55]}  e5 {[%clk 0:02:15]} 12. f5 {[%clk 0:02:51]}  gxf5 {[%clk 0:02:16]} 13. exf5 {[%clk 0:02:51]}  Rb8 {[%clk 0:02:06]} 14. h3 {[%clk 0:02:47]}  b5 {[%clk 0:02:04]} 15. b3 {[%clk 0:02:47]}  Bb7 {[%clk 0:01:59]} 16. Bxb7 {[%clk 0:02:46]}  Rxb7 {[%clk 0:02:00]} 17. g4 {[%clk 0:02:46]}  bxc4 {[%clk 0:01:57]} 18. bxc4 {[%clk 0:02:46]}  Nd7 {[%clk 0:01:50]} 19. Ng3 {[%clk 0:02:45]}  Qh4 {[%clk 0:01:29]} 20. Kg2 {[%clk 0:02:43]}  Rfb8 {[%clk 0:01:18]} 21. Qf3 {[%clk 0:02:41]}  Nc5 {[%clk 0:01:13]} 22. Rf2 {[%clk 0:02:31]}  a5 {[%clk 0:01:06]} 23. Ba3 {[%clk 0:02:28]}  Rb6 {[%clk 0:01:03]} 24. Bxc5 {[%clk 0:02:25]}  dxc5 {[%clk 0:01:04]} 25. Ne4 {[%clk 0:02:26]}  Rb2 {[%clk 0:01:00]} 26. Rf1 {[%clk 0:02:24]}  a4 {[%clk 0:00:59]} 27. Nxc5 {[%clk 0:02:23]}  a3 {[%clk 0:00:56]} 28. Ne4 {[%clk 0:02:23]}  Rxf2+ {[%clk 0:00:50]} 29. Rxf2 {[%clk 0:02:21]}  Rb1 {[%clk 0:00:50]} 30. c5 {[%clk 0:01:56]}  Qd8 {[%clk 0:00:45]} 31. Nd6 {[%clk 0:01:41]}  Qc7 {[%clk 0:00:41]} 32. Qd5 {[%clk 0:01:40]}  Rb2 {[%clk 0:00:35]} 33. Ne4 {[%clk 0:01:33]}  Bf8 {[%clk 0:00:24]} 34. c6 {[%clk 0:01:33]}  Qb6 {[%clk 0:00:17]} 35. Nf6+ {[%clk 0:01:23]}  Kg7 {[%clk 0:00:16]} 36. Nd7 {[%clk 0:01:19]}  Rxf2+ {[%clk 0:00:14]} 37. Kxf2 {[%clk 0:01:19]}  Qb2+ {[%clk 0:00:14]} 38. Kf3 {[%clk 0:01:20]}  Qh2 {[%clk 0:00:12]} 39. Qxe5+ {[%clk 0:01:19]}  Qxe5 {[%clk 0:00:12]} 40. Nxe5 {[%clk 0:01:20]}  Bd6 {[%clk 0:00:12]} 41. Ke4 {[%clk 0:01:20]}  Kf6 {[%clk 0:00:11]} 42. Nc4 {[%clk 0:01:19]}  Bc7 {[%clk 0:00:11]} 43. Kxd4 {[%clk 0:01:19]} 1-0


[Site "https://www.chess.com"]

[Event "Titled Tuesday Blitz September 21 2021"]
[White "Murzin, Volodar"]
[Black "Gnechko, Ruslan"]
[WhiteFideId "44155573"]
[BlackFideId "14135868"]
[WhiteElo "2514"]
[BlackElo "2289"]
[Result "1-0"]
[Round "01"]
[TimeControl "180+1"]
[Date "2021.09.21"]
[WhiteClock "0:00:07"]
[BlackClock "0:00:08"]

1. e4 {[%clk 0:02:23]}  d6 {[%clk 0:03:00]} 2. d4 {[%clk 0:02:21]}  Nf6 {[%clk 0:03:01]} 3. Nc3 {[%clk 0:02:21]}  g6 {[%clk 0:03:01]} 4. Be3 {[%clk 0:02:22]}  c6 {[%clk 0:03:01]} 5. f3 {[%clk 0:02:21]}  Nbd7 {[%clk 0:03:02]} 6. Qd2 {[%clk 0:02:21]}  b5 {[%clk 0:03:02]} 7. O-O-O {[%clk 0:02:20]}  Qc7 {[%clk 0:03:01]} 8. g4 {[%clk 0:02:09]}  b4 {[%clk 0:03:00]} 9. Nce2 {[%clk 0:02:08]}  Rb8 {[%clk 0:02:53]} 10. g5 {[%clk 0:02:03]}  Nh5 {[%clk 0:02:48]} 11. Ng3 {[%clk 0:02:02]}  Bg7 {[%clk 0:02:31]} 12. Nxh5 {[%clk 0:01:58]}  gxh5 {[%clk 0:02:32]} 13. Ne2 {[%clk 0:01:58]}  c5 {[%clk 0:02:30]} 14. Nf4 {[%clk 0:01:49]}  cxd4 {[%clk 0:02:13]} 15. Bxd4 {[%clk 0:01:46]}  Bxd4 {[%clk 0:02:13]} 16. Qxd4 {[%clk 0:01:46]}  e5 {[%clk 0:02:14]} 17. Nd5 {[%clk 0:01:46]}  Qc5 {[%clk 0:02:09]} 18. Qd2 {[%clk 0:01:18]}  O-O {[%clk 0:01:55]} 19. Ne7+ {[%clk 0:01:14]}  Kh8 {[%clk 0:01:54]} 20. Qxd6 {[%clk 0:01:12]}  Qxd6 {[%clk 0:01:52]} 21. Rxd6 {[%clk 0:01:11]}  Nc5 {[%clk 0:01:51]} 22. Rd5 {[%clk 0:01:01]}  Ne6 {[%clk 0:01:50]} 23. Rxe5 {[%clk 0:01:00]}  Bb7 {[%clk 0:01:30]} 24. Bd3 {[%clk 0:00:46]}  Rfe8 {[%clk 0:01:15]} 25. Nf5 {[%clk 0:00:44]}  Nxg5 {[%clk 0:01:01]} 26. Rxe8+ {[%clk 0:00:34]}  Rxe8 {[%clk 0:01:02]} 27. Rf1 {[%clk 0:00:33]}  Ne6 {[%clk 0:00:53]} 28. Kd2 {[%clk 0:00:25]}  Nf4 {[%clk 0:00:48]} 29. Rg1 {[%clk 0:00:16]}  Bc6 {[%clk 0:00:42]} 30. Bc4 {[%clk 0:00:07]}  Ne6 {[%clk 0:00:35]} 31. Ke3 {[%clk 0:00:06]}  a5 {[%clk 0:00:29]} 32. Nd6 {[%clk 0:00:05]}  Re7 {[%clk 0:00:28]} 33. Nxf7+ {[%clk 0:00:06]}  Rxf7 {[%clk 0:00:27]} 34. Bxe6 {[%clk 0:00:07]}  Rf8 {[%clk 0:00:25]} 35. f4 {[%clk 0:00:07]}  h6 {[%clk 0:00:17]} 36. f5 {[%clk 0:00:07]}  a4 {[%clk 0:00:14]} 37. Kf4 {[%clk 0:00:07]}  Bb5 {[%clk 0:00:11]} 38. Ke5 {[%clk 0:00:07]}  a3 {[%clk 0:00:10]} 39. bxa3 {[%clk 0:00:06]}  bxa3 {[%clk 0:00:09]} 40. Rg3 {[%clk 0:00:05]}  Be2 {[%clk 0:00:08]} 41. Rxa3 {[%clk 0:00:05]}  h4 {[%clk 0:00:07]} 42. f6 {[%clk 0:00:05]}  Kh7 {[%clk 0:00:06]} 43. Ra7+ {[%clk 0:00:04]}  Kg6 {[%clk 0:00:06]} 44. Rg7+ {[%clk 0:00:04]}  Kh5 {[%clk 0:00:07]} 45. Bf7+ {[%clk 0:00:04]}  Rxf7 {[%clk 0:00:07]} 46. Rxf7 {[%clk 0:00:05]}  h3 {[%clk 0:00:08]} 47. Rg7 {[%clk 0:00:05]}  Kh4 {[%clk 0:00:07]} 48. f7 {[%clk 0:00:06]}  h5 {[%clk 0:00:08]} 49. f8=Q {[%clk 0:00:06]}  Bc4 {[%clk 0:00:08]} 50. Qf2# {[%clk 0:00:07]} 1-0


[Site "https://www.chess.com"]

[Event "Titled Tuesday Blitz September 21 2021"]
[White "Omariev, Maksim"]
[Black "Jobava, Baadur"]
[WhiteFideId "4193423"]
[BlackFideId "13601520"]
[WhiteElo "2441"]
[BlackElo "2731"]
[Result "1-0"]
[Round "01"]
[TimeControl "180+1"]
[Date "2021.09.21"]
[WhiteClock "0:00:09"]
[BlackClock "0:00:56"]

1. g4 {[%clk 0:02:07]}  d5 {[%clk 0:02:55]} 2. Bg2 {[%clk 0:02:07]}  c6 {[%clk 0:02:55]} 3. h3 {[%clk 0:02:02]}  e5 {[%clk 0:02:55]} 4. d4 {[%clk 0:02:02]}  Nd7 {[%clk 0:02:50]} 5. dxe5 {[%clk 0:01:51]}  Nxe5 {[%clk 0:02:50]} 6. Nf3 {[%clk 0:01:51]}  Bd6 {[%clk 0:02:45]} 7. Qd4 {[%clk 0:01:46]}  Qe7 {[%clk 0:02:39]} 8. Bf4 {[%clk 0:01:37]}  Nxf3+ {[%clk 0:02:34]} 9. Bxf3 {[%clk 0:01:38]}  Bxf4 {[%clk 0:02:26]} 10. Qxf4 {[%clk 0:01:39]}  Nf6 {[%clk 0:02:26]} 11. Nd2 {[%clk 0:01:32]}  O-O {[%clk 0:02:25]} 12. O-O-O {[%clk 0:01:30]}  Be6 {[%clk 0:02:22]} 13. g5 {[%clk 0:01:30]}  Nd7 {[%clk 0:02:22]} 14. h4 {[%clk 0:01:29]}  a5 {[%clk 0:02:15]} 15. h5 {[%clk 0:01:28]}  a4 {[%clk 0:02:12]} 16. a3 {[%clk 0:01:20]}  f6 {[%clk 0:02:11]} 17. h6 {[%clk 0:01:17]}  fxg5 {[%clk 0:02:08]} 18. Qc7 {[%clk 0:01:14]}  g6 {[%clk 0:02:01]} 19. Qxb7 {[%clk 0:00:59]}  Qd6 {[%clk 0:01:54]} 20. Ne4 {[%clk 0:00:51]}  Qf4+ {[%clk 0:01:51]} 21. Nd2 {[%clk 0:00:49]}  Qd6 {[%clk 0:01:41]} 22. Ne4 {[%clk 0:00:47]}  Qe5 {[%clk 0:01:41]} 23. Nc3 {[%clk 0:00:21]}  Rab8 {[%clk 0:01:25]} 24. Qxc6 {[%clk 0:00:20]}  Rfc8 {[%clk 0:01:24]} 25. Qxe6+ {[%clk 0:00:21]}  Qxe6 {[%clk 0:01:19]} 26. Bxd5 {[%clk 0:00:22]}  Nc5 {[%clk 0:01:16]} 27. Bxe6+ {[%clk 0:00:21]}  Nxe6 {[%clk 0:01:17]} 28. Rd7 {[%clk 0:00:16]}  g4 {[%clk 0:01:13]} 29. Rhd1 {[%clk 0:00:16]}  Rf8 {[%clk 0:01:13]} 30. Ne4 {[%clk 0:00:14]}  Rf4 {[%clk 0:01:13]} 31. f3 {[%clk 0:00:10]}  gxf3 {[%clk 0:01:14]} 32. exf3 {[%clk 0:00:10]}  Rxf3 {[%clk 0:01:15]} 33. Re7 {[%clk 0:00:10]}  Nf8 {[%clk 0:01:14]} 34. Rd6 {[%clk 0:00:06]}  Kh8 {[%clk 0:01:11]} 35. Nf6 {[%clk 0:00:06]}  Rc8 {[%clk 0:01:02]} 36. Rg7 {[%clk 0:00:05]}  Rf1+ {[%clk 0:00:57]} 37. Kd2 {[%clk 0:00:05]}  Rf2+ {[%clk 0:00:58]} 38. Ke3 {[%clk 0:00:05]}  Rxf6 {[%clk 0:00:58]} 39. Rxf6 {[%clk 0:00:06]}  g5 {[%clk 0:00:57]} 40. Rff7 {[%clk 0:00:03]}  Ne6 {[%clk 0:00:54]} 41. Rxh7+ {[%clk 0:00:02]}  Kg8 {[%clk 0:00:55]} 42. Re7 {[%clk 0:00:02]}  Rxc2 {[%clk 0:00:53]} 43. Kd3 {[%clk 0:00:02]}  Rxb2 {[%clk 0:00:53]} 44. Rhf7 {[%clk 0:00:03]}  Nf8 {[%clk 0:00:48]} 45. h7+ {[%clk 0:00:02]}  Nxh7 {[%clk 0:00:48]} 46. Rg7+ {[%clk 0:00:02]}  Kf8 {[%clk 0:00:47]} 47. Rxh7 {[%clk 0:00:03]}  Rb3+ {[%clk 0:00:48]} 48. Kc4 {[%clk 0:00:03]}  Rxa3 {[%clk 0:00:49]} 49. Ra7 {[%clk 0:00:03]}  Kg8 {[%clk 0:00:49]} 50. Rhc7 {[%clk 0:00:03]}  Rf3 {[%clk 0:00:49]} 51. Rc8+ {[%clk 0:00:03]}  Rf8 {[%clk 0:00:50]} 52. Rxf8+ {[%clk 0:00:04]}  Kxf8 {[%clk 0:00:51]} 53. Rxa4 {[%clk 0:00:04]}  Kf7 {[%clk 0:00:52]} 54. Kd3 {[%clk 0:00:05]}  Kg6 {[%clk 0:00:53]} 55. Ke2 {[%clk 0:00:06]}  Kh5 {[%clk 0:00:54]} 56. Kf2 {[%clk 0:00:07]}  g4 {[%clk 0:00:54]} 57. Kg2 {[%clk 0:00:08]}  Kh4 {[%clk 0:00:55]} 58. Ra3 {[%clk 0:00:08]}  g3 {[%clk 0:00:55]} 59. Rxg3 {[%clk 0:00:08]}  Kh5 {[%clk 0:00:56]} 60. Kf3 {[%clk 0:00:09]} 1-0


[Site "https://www.chess.com"]

[Event "Titled Tuesday Blitz September 21 2021"]
[White "Onyshchuk, Volodymyr"]
[Black "Czerw, Dawid"]
[WhiteFideId "14114038"]
[BlackFideId "1145746"]
[WhiteElo "2603"]
[BlackElo "2075"]
[Result "0-1"]
[Round "01"]
[TimeControl "180+1"]
[Date "2021.09.21"]
[WhiteClock "0:00:05"]
[BlackClock "0:00:11"]

1. e4 {[%clk 0:02:59]}  c5 {[%clk 0:02:59]} 2. Ne2 {[%clk 0:02:58]}  g6 {[%clk 0:02:58]} 3. g3 {[%clk 0:02:55]}  Bg7 {[%clk 0:02:57]} 4. Bg2 {[%clk 0:02:55]}  Nc6 {[%clk 0:02:57]} 5. c3 {[%clk 0:02:55]}  e6 {[%clk 0:02:52]} 6. d4 {[%clk 0:02:51]}  cxd4 {[%clk 0:02:52]} 7. cxd4 {[%clk 0:02:51]}  d5 {[%clk 0:02:52]} 8. e5 {[%clk 0:02:44]}  Nge7 {[%clk 0:02:47]} 9. O-O {[%clk 0:02:42]}  h5 {[%clk 0:02:47]} 10. h3 {[%clk 0:02:37]}  Nf5 {[%clk 0:02:44]} 11. Nbc3 {[%clk 0:02:16]}  Bd7 {[%clk 0:02:33]} 12. b3 {[%clk 0:02:07]}  Bf8 {[%clk 0:02:26]} 13. Bb2 {[%clk 0:02:02]}  Rc8 {[%clk 0:02:25]} 14. Qd3 {[%clk 0:01:52]}  Be7 {[%clk 0:02:05]} 15. Rac1 {[%clk 0:01:49]}  O-O {[%clk 0:01:56]} 16. Qd2 {[%clk 0:01:31]}  Kg7 {[%clk 0:01:50]} 17. Nd1 {[%clk 0:01:26]}  Qb6 {[%clk 0:01:42]} 18. Ne3 {[%clk 0:01:23]}  Nxe3 {[%clk 0:01:28]} 19. Qxe3 {[%clk 0:01:23]}  Nb4 {[%clk 0:01:22]} 20. a3 {[%clk 0:01:20]}  Nc2 {[%clk 0:01:17]} 21. Qd2 {[%clk 0:01:03]}  Nxa3 {[%clk 0:01:13]} 22. Nf4 {[%clk 0:00:55]}  Qxb3 {[%clk 0:01:02]} 23. Bf3 {[%clk 0:00:36]}  Nc4 {[%clk 0:01:00]} 24. Rxc4 {[%clk 0:00:32]}  Rxc4 {[%clk 0:00:57]} 25. Bd1 {[%clk 0:00:30]}  Qb4 {[%clk 0:00:51]} 26. Qe2 {[%clk 0:00:24]}  Ba4 {[%clk 0:00:43]} 27. Bxa4 {[%clk 0:00:20]}  Qxa4 {[%clk 0:00:44]} 28. Bc1 {[%clk 0:00:20]}  Rc2 {[%clk 0:00:37]} 29. Qf3 {[%clk 0:00:19]}  Qxd4 {[%clk 0:00:27]} 30. Qb3 {[%clk 0:00:17]}  Rfc8 {[%clk 0:00:20]} 31. Be3 {[%clk 0:00:16]}  Qb6 {[%clk 0:00:18]} 32. Qd3 {[%clk 0:00:14]}  Qc7 {[%clk 0:00:15]} 33. Bd4 {[%clk 0:00:12]}  Rc4 {[%clk 0:00:14]} 34. Qe3 {[%clk 0:00:11]}  Rxd4 {[%clk 0:00:14]} 35. Qxd4 {[%clk 0:00:11]}  Qc5 {[%clk 0:00:14]} 36. Qb2 {[%clk 0:00:11]}  b5 {[%clk 0:00:13]} 37. Ra1 {[%clk 0:00:10]}  b4 {[%clk 0:00:12]} 38. Qb3 {[%clk 0:00:09]}  Qc4 {[%clk 0:00:11]} 39. Qb2 {[%clk 0:00:07]}  Qc3 {[%clk 0:00:12]} 40. Qb1 {[%clk 0:00:07]}  b3 {[%clk 0:00:12]} 41. Rxa7 {[%clk 0:00:07]}  Qc1+ {[%clk 0:00:12]} 42. Qxc1 {[%clk 0:00:07]}  Rxc1+ {[%clk 0:00:13]} 43. Kg2 {[%clk 0:00:07]}  b2 {[%clk 0:00:14]} 44. Rxe7 {[%clk 0:00:06]}  b1=Q {[%clk 0:00:13]} 45. Nxe6+ {[%clk 0:00:06]}  Kg8 {[%clk 0:00:11]} 46. Re8+ {[%clk 0:00:06]}  Kh7 {[%clk 0:00:11]} 47. Ng5+ {[%clk 0:00:05]}  Kg7 {[%clk 0:00:11]} 0-1


[Site "https://www.chess.com"]

[Event "Titled Tuesday Blitz September 21 2021"]
[White "Ovetchkin, Roman"]
[Black "Krzywda, Andrzej"]
[WhiteFideId "4119991"]
[BlackFideId "1114565"]
[WhiteElo "2432"]
[BlackElo "2139"]
[Result "1-0"]
[Round "01"]
[TimeControl "180+1"]
[Date "2021.09.21"]
[WhiteClock "0:00:11"]
[BlackClock "0:00:01"]

1. d4 {[%clk 0:02:33]}  Nf6 {[%clk 0:02:59]} 2. c4 {[%clk 0:02:31]}  c5 {[%clk 0:02:59]} 3. d5 {[%clk 0:02:31]}  b5 {[%clk 0:03:00]} 4. cxb5 {[%clk 0:02:31]}  a6 {[%clk 0:03:01]} 5. bxa6 {[%clk 0:02:32]}  g6 {[%clk 0:03:01]} 6. Nc3 {[%clk 0:02:31]}  Bg7 {[%clk 0:03:01]} 7. e4 {[%clk 0:02:31]}  O-O {[%clk 0:03:02]} 8. Nf3 {[%clk 0:02:31]}  Qa5 {[%clk 0:03:01]} 9. Nd2 {[%clk 0:02:27]}  Bxa6 {[%clk 0:02:51]} 10. e5 {[%clk 0:02:18]}  Ne8 {[%clk 0:02:45]} 11. f4 {[%clk 0:02:13]}  d6 {[%clk 0:02:41]} 12. h4 {[%clk 0:02:08]}  Bxf1 {[%clk 0:02:31]} 13. Kxf1 {[%clk 0:02:07]}  dxe5 {[%clk 0:02:31]} 14. h5 {[%clk 0:02:07]}  exf4 {[%clk 0:02:26]} 15. hxg6 {[%clk 0:02:06]}  fxg6 {[%clk 0:02:26]} 16. Qe2 {[%clk 0:01:33]}  Qa6 {[%clk 0:01:39]} 17. Nde4 {[%clk 0:01:19]}  f3 {[%clk 0:01:33]} 18. Qxa6 {[%clk 0:01:18]}  fxg2+ {[%clk 0:01:30]} 19. Kxg2 {[%clk 0:01:18]}  Nxa6 {[%clk 0:01:30]} 20. Bg5 {[%clk 0:01:18]}  Nf6 {[%clk 0:01:27]} 21. Rae1 {[%clk 0:01:11]}  Rab8 {[%clk 0:01:26]} 22. b3 {[%clk 0:01:10]}  Nb4 {[%clk 0:01:15]} 23. Nxf6+ {[%clk 0:01:07]}  exf6 {[%clk 0:01:14]} 24. Bf4 {[%clk 0:01:07]}  Rbd8 {[%clk 0:01:11]} 25. Bc7 {[%clk 0:01:03]}  Rd7 {[%clk 0:01:02]} 26. d6 {[%clk 0:01:03]}  f5 {[%clk 0:01:01]} 27. Na4 {[%clk 0:01:00]}  Nd3 {[%clk 0:00:51]} 28. Rd1 {[%clk 0:00:54]}  Nf4+ {[%clk 0:00:50]} 29. Kf3 {[%clk 0:00:50]}  Ne6 {[%clk 0:00:50]} 30. Nb6 {[%clk 0:00:50]}  Rxc7 {[%clk 0:00:44]} 31. dxc7 {[%clk 0:00:50]}  Nxc7 {[%clk 0:00:44]} 32. Rd7 {[%clk 0:00:49]}  Ne6 {[%clk 0:00:44]} 33. Nd5 {[%clk 0:00:47]}  h6 {[%clk 0:00:35]} 34. Re1 {[%clk 0:00:43]}  Nd4+ {[%clk 0:00:33]} 35. Kf2 {[%clk 0:00:42]}  Rf7 {[%clk 0:00:22]} 36. Re8+ {[%clk 0:00:37]}  Bf8 {[%clk 0:00:21]} 37. Rdd8 {[%clk 0:00:35]}  Kg7 {[%clk 0:00:15]} 38. Nb6 {[%clk 0:00:27]}  g5 {[%clk 0:00:13]} 39. Nd7 {[%clk 0:00:27]}  Nc6 {[%clk 0:00:10]} 40. Rc8 {[%clk 0:00:21]}  Rxd7 {[%clk 0:00:09]} 41. Rxf8 {[%clk 0:00:20]}  Ne5 {[%clk 0:00:07]} 42. Rxf5 {[%clk 0:00:18]}  Nd3+ {[%clk 0:00:05]} 43. Ke3 {[%clk 0:00:18]}  Nb4 {[%clk 0:00:04]} 44. a3 {[%clk 0:00:17]}  Nc2+ {[%clk 0:00:04]} 45. Ke4 {[%clk 0:00:16]}  Nxa3 {[%clk 0:00:05]} 46. Rc6 {[%clk 0:00:15]}  Nc2 {[%clk 0:00:02]} 47. Rff6 {[%clk 0:00:15]}  Re7+ {[%clk 0:00:02]} 48. Rce6 {[%clk 0:00:10]}  Rxe6+ {[%clk 0:00:01]} 49. Rxe6 {[%clk 0:00:11]} 1-0


[Site "https://www.chess.com"]

[Event "Titled Tuesday Blitz September 21 2021"]
[White "Pakleza, Zbigniew"]
[Black "Boidiya, Sidi"]
[WhiteFideId "1119290"]
[BlackFideId "19600100"]
[WhiteElo "2526"]
[BlackElo "2113"]
[Result "1-0"]
[Round "01"]
[TimeControl "180+1"]
[Date "2021.09.21"]
[WhiteClock "0:00:48"]
[BlackClock "0:00:06"]

1. d4 {[%clk 0:03:00]}  d5 {[%clk 0:02:55]} 2. Bf4 {[%clk 0:03:00]}  e6 {[%clk 0:02:54]} 3. e3 {[%clk 0:03:01]}  Bd6 {[%clk 0:02:52]} 4. Bg3 {[%clk 0:03:01]}  c5 {[%clk 0:02:39]} 5. Nd2 {[%clk 0:03:00]}  Qc7 {[%clk 0:02:35]} 6. Ngf3 {[%clk 0:02:58]}  Nd7 {[%clk 0:02:28]} 7. c4 {[%clk 0:02:58]}  Ngf6 {[%clk 0:02:27]} 8. Be2 {[%clk 0:02:53]}  O-O {[%clk 0:02:27]} 9. O-O {[%clk 0:02:52]}  Bxg3 {[%clk 0:02:27]} 10. hxg3 {[%clk 0:02:53]}  b6 {[%clk 0:02:28]} 11. Rc1 {[%clk 0:02:50]}  Qd6 {[%clk 0:02:28]} 12. cxd5 {[%clk 0:02:45]}  exd5 {[%clk 0:02:25]} 13. dxc5 {[%clk 0:02:42]}  bxc5 {[%clk 0:02:25]} 14. Qc2 {[%clk 0:02:35]}  Bb7 {[%clk 0:02:23]} 15. Rfd1 {[%clk 0:02:33]}  Rac8 {[%clk 0:02:15]} 16. Qa4 {[%clk 0:02:21]}  Qb6 {[%clk 0:02:11]} 17. b3 {[%clk 0:02:19]}  Bc6 {[%clk 0:02:05]} 18. Qf4 {[%clk 0:02:13]}  Rfd8 {[%clk 0:01:58]} 19. g4 {[%clk 0:02:09]}  Qb8 {[%clk 0:01:36]} 20. Qxb8 {[%clk 0:02:00]}  Rxb8 {[%clk 0:01:37]} 21. g5 {[%clk 0:02:01]}  Ng4 {[%clk 0:01:26]} 22. Nf1 {[%clk 0:01:42]}  Rbc8 {[%clk 0:01:10]} 23. Ng3 {[%clk 0:01:35]}  g6 {[%clk 0:01:03]} 24. Ba6 {[%clk 0:01:22]}  Rb8 {[%clk 0:00:49]} 25. Rc2 {[%clk 0:01:15]}  Kg7 {[%clk 0:00:48]} 26. Be2 {[%clk 0:01:15]}  h6 {[%clk 0:00:47]} 27. gxh6+ {[%clk 0:01:11]}  Nxh6 {[%clk 0:00:47]} 28. Rdc1 {[%clk 0:01:04]}  Bb5 {[%clk 0:00:44]} 29. Kf1 {[%clk 0:01:02]}  Bxe2+ {[%clk 0:00:39]} 30. Nxe2 {[%clk 0:01:03]}  Ng8 {[%clk 0:00:39]} 31. Rd1 {[%clk 0:01:02]}  Ngf6 {[%clk 0:00:38]} 32. Nf4 {[%clk 0:01:03]}  Rb6 {[%clk 0:00:23]} 33. Nxd5 {[%clk 0:01:01]}  Rd6 {[%clk 0:00:22]} 34. Nc3 {[%clk 0:01:01]}  Rxd1+ {[%clk 0:00:19]} 35. Nxd1 {[%clk 0:01:02]}  Nb6 {[%clk 0:00:19]} 36. Nb2 {[%clk 0:01:01]}  Rc8 {[%clk 0:00:19]} 37. Ne5 {[%clk 0:00:58]}  Ne4 {[%clk 0:00:19]} 38. Ke2 {[%clk 0:00:57]}  Nd6 {[%clk 0:00:18]} 39. Nec4 {[%clk 0:00:55]}  Ndxc4 {[%clk 0:00:17]} 40. Nxc4 {[%clk 0:00:55]}  Nd5 {[%clk 0:00:17]} 41. Nd6 {[%clk 0:00:54]}  Rc6 {[%clk 0:00:16]} 42. Ne4 {[%clk 0:00:54]}  Nb4 {[%clk 0:00:14]} 43. Rxc5 {[%clk 0:00:54]}  Rxc5 {[%clk 0:00:14]} 44. Nxc5 {[%clk 0:00:55]}  Nxa2 {[%clk 0:00:14]} 45. Kd3 {[%clk 0:00:54]}  Nb4+ {[%clk 0:00:14]} 46. Kc4 {[%clk 0:00:54]}  Nc6 {[%clk 0:00:15]} 47. Kb5 {[%clk 0:00:54]}  Ne5 {[%clk 0:00:14]} 48. Ka6 {[%clk 0:00:54]}  Ng4 {[%clk 0:00:14]} 49. Nd3 {[%clk 0:00:54]}  Kf6 {[%clk 0:00:13]} 50. Kxa7 {[%clk 0:00:54]}  Ke6 {[%clk 0:00:14]} 51. b4 {[%clk 0:00:55]}  Kd5 {[%clk 0:00:15]} 52. b5 {[%clk 0:00:55]}  Kc4 {[%clk 0:00:15]} 53. f3 {[%clk 0:00:49]}  Nf6 {[%clk 0:00:09]} 54. Ne5+ {[%clk 0:00:49]}  Kxb5 {[%clk 0:00:10]} 55. Nxf7 {[%clk 0:00:49]}  Kc4 {[%clk 0:00:10]} 56. Ne5+ {[%clk 0:00:45]}  Kc3 {[%clk 0:00:07]} 57. Nxg6 {[%clk 0:00:45]}  Kd3 {[%clk 0:00:08]} 58. e4 {[%clk 0:00:44]}  Nxe4 {[%clk 0:00:05]} 59. fxe4 {[%clk 0:00:45]}  Kxe4 {[%clk 0:00:06]} 60. Nh4 {[%clk 0:00:44]}  Kf4 {[%clk 0:00:06]} 61. Nf3 {[%clk 0:00:45]}  Kg3 {[%clk 0:00:05]} 62. Ne1 {[%clk 0:00:46]}  Kf2 {[%clk 0:00:05]} 63. Kb6 {[%clk 0:00:47]}  Kxe1 {[%clk 0:00:04]} 64. g4 {[%clk 0:00:46]}  Kf2 {[%clk 0:00:05]} 65. g5 {[%clk 0:00:47]}  Kg3 {[%clk 0:00:06]} 66. g6 {[%clk 0:00:48]} 1-0


[Site "https://www.chess.com"]